[Event "FIDE Open World Rapid 2024"]
[Site "New York"]
[Date "2024.12.27"]
[Round "7.9"]
[White "Salem, A.R. Saleh"]
[Black "Dudin, Gleb"]
[Result "1/2-1/2"]
[ECO "D35"]
[WhiteElo "2622"]
[BlackElo "2506"]
[Annotator "ChessBase"]
[PlyCount "207"]
[EventDate "2024.12.14"]
[EventType "swiss"]
[EventCountry "USA"]
[SourceTitle "playchess.com"]
[Source "ChessBase"]
[SourceQuality "1"]
[TimeControl "900+10"]

1. d4 {[%emt 0:00:01]} d5 {[%emt 0:00:01]} 2. c4 {[%emt 0:00:02]} e6 {[%emt 0:00:02]} 3. Nc3 {[%emt 0:00:02]} Nf6 {[%emt 0:00:01]} 4. cxd5 {[%emt 0:00:01]} exd5 {[%emt 0:00:02]} 5. Bg5 {[%emt 0:00:04]} h6 {[%emt 0:00:03]} 6. Bxf6 {[%emt 0:00:10]} Qxf6 {[%emt 0:00:29]} 7. Nxd5 {[%emt 0:00:02]} Qd8 {[%emt 0:00:02]} 8. Nc3 {[%emt 0:00:10]} Bd6 {[%emt 0:00:36]} 9. Nf3 {[%emt 0:00:11]} O-O {[%emt 0:00:03]} 10. g3 {[%emt 0:00:18]} c5 {[%emt 0:00:22]} 11. Bg2 {[%emt 0:01:50]} cxd4 {[%emt 0:00:13]} 12. Nxd4 {[%emt 0:00:14]} Be5 {[%emt 0:00:28]} 13. e3 {[%emt 0:00:28]} Nc6 {[%emt 0:00:28]} 14. Nxc6 {[%emt 0:00:23]} bxc6 {[%emt 0:00:16]} 15. Qxd8 {[%emt 0:01:00]} Rxd8 {[%emt 0:00:03]} 16. Rc1 {[%emt 0:00:02]} Ba6 {[%emt 0:01:23]} 17. b3 {[%emt 0:01:51]} Rac8 {[%emt 0:02:17]} 18. Bf1 {[%emt 0:03:44]} Bb7 {[%emt 0:01:53]} 19. Be2 {[%emt 0:00:02]} c5 {[%emt 0:00:35]} 20. Rg1 {[%emt 0:00:02]} a5 {[%emt 0:02:04]} 21. Na4 {[%emt 0:01:44]} Bc6 {[%emt 0:01:57]} 22. Nb6 {[%emt 0:00:08]} Rb8 {[%emt 0:00:00]} 23. Rxc5 {[%emt 0:01:58]} Rxb6 {[%emt 0:00:12]} 24. Rxe5 {[%emt 0:00:01]} a4 {[%emt 0:00:21]} 25. Bd1 {[%emt 0:00:45]} axb3 {[%emt 0:01:06]} 26. axb3 {[%emt 0:00:02]} Ra6 {[%emt 0:00:08]} 27. Rc5 {[%emt 0:00:30]} Ra1 {[%emt 0:00:20]} 28. Ke2 {[%emt 0:00:05]} Bb7 {[%emt 0:02:06]} 29. b4 {[%emt 0:00:02]} g5 {[%emt 0:00:33]} 30. h3 {[%emt 0:00:42]} Rb1 {[%emt 0:00:42]} 31. b5 {[%emt 0:00:13]} Ra8 {[%emt 0:01:12]} 32. Re1 {[%emt 0:00:40]} Raa1 {[%emt 0:00:04]} 33. Kd2 {[%emt 0:01:06]} Bg2 {[%emt 0:00:20]} 34. f4 {[%emt 0:01:01]} Bxh3 {[%emt 0:00:14]} 35. fxg5 {[%emt 0:00:26]} hxg5 {[%emt 0:00:02]} 36. Rxg5+ {[%emt 0:00:09]} Kf8 {[%emt 0:00:01]} 37. Rd5 {[%emt 0:00:48]} Be6 {[%emt 0:00:10]} 38. Rd4 {[%emt 0:00:18]} Rb2+ {[%emt 0:00:19]} 39. Kd3 {[%emt 0:00:13]} Rxb5 {[%emt 0:00:08]} 40. Ke2 {[%emt 0:00:03]} Rbb1 {[%emt 0:00:10]} 41. Kf2 {[%emt 0:00:14]} Ke7 {[%emt 0:00:21]} 42. Rf1 {[%emt 0:00:03]} Rb2+ {[%emt 0:00:08]} 43. Be2 {[%emt 0:00:08]} Raa2 {[%emt 0:00:07]} 44. Re1 {[%emt 0:00:01]} Bd7 {[%emt 0:00:07]} 45. Kf3 {[%emt 0:00:14]} Bc6+ {[%emt 0:00:05]} 46. e4 {[%emt 0:00:02]} f5 {[%emt 0:00:22]} 47. Bd3 {[%emt 0:00:05]} Rf2+ {[%emt 0:00:09]} 48. Ke3 {[%emt 0:00:01]} fxe4 {[%emt 0:00:11]} 49. Bxe4 {[%emt 0:00:01]} Bxe4 {[%emt 0:00:03]} 50. Rxe4+ {[%emt 0:00:28]} Kf7 {[%emt 0:00:09]} 51. Rd4 {[%emt 0:00:12]} Rf6 {[%emt 0:00:08]} 52. Red1 {[%emt 0:00:35]} Ra3+ {[%emt 0:00:05]} 53. R1d3 {[%emt 0:00:03]} Rxd3+ {[%emt 0:00:03]} 54. Rxd3 {[%emt 0:00:03]} Kg6 {[%emt 0:00:02]} 55. Ke4 {[%emt 0:00:03]} Kg5 {[%emt 0:00:02]} 56. Rd8 {[%emt 0:00:04]} Re6+ {[%emt 0:00:44]} 57. Kf3 {[%emt 0:00:10]} Rf6+ {[%emt 0:00:01]} 58. Kg2 {[%emt 0:00:01]} Ra6 {[%emt 0:00:04]} 59. Rg8+ {[%emt 0:00:03]} Kf6 {[%emt 0:00:05]} 60. Kh3 {[%emt 0:00:02]} Kf7 {[%emt 0:00:04]} 61. Rg5 {[%emt 0:00:01]} Kf6 {[%emt 0:00:04]} 62. Kh4 {[%emt 0:00:03]} Ra4+ {[%emt 0:00:06]} 63. Kh5 {[%emt 0:00:02]} Kf7 {[%emt 0:00:14]} 64. Kh6 {[%emt 0:00:07]} Ra1 {[%emt 0:00:45]} 65. g4 {[%emt 0:01:08]} Rh1+ {[%emt 0:00:11]} 66. Rh5 {[%emt 0:00:01]} Rg1 {[%emt 0:00:10]} 67. Rg5 {[%emt 0:00:10]} Rh1+ {[%emt 0:00:03]} 68. Rh5 {[%emt 0:00:01]} Rg1 {[%emt 0:00:01]} 69. Rf5+ {[%emt 0:00:00]} Kg8 {[%emt 0:00:08]} 70. Rg5+ {[%emt 0:00:02]} Kh8 {[%emt 0:00:25]} 71. Kg6 {[%emt 0:00:01]} Kg8 {[%emt 0:00:02]} 72. Kf6+ {[%emt 0:00:17]} Kf8 {[%emt 0:00:01]} 73. Rg6 {[%emt 0:00:01]} Rf1+ {[%emt 0:00:15]} 74. Kg5 {[%emt 0:00:02]} Kf7 {[%emt 0:00:05]} 75. Ra6 {[%emt 0:00:08]} Kg7 {[%emt 0:00:12]} 76. Ra7+ {[%emt 0:00:03]} Kg8 {[%emt 0:00:02]} 77. Kg6 {[%emt 0:00:02]} Rf8 {[%emt 0:00:15]} 78. Rg7+ {[%emt 0:00:23]} Kh8 {[%emt 0:00:02]} 79. Rf7 {[%emt 0:00:02]} Ra8 {[%emt 0:00:06]} 80. Re7 {[%emt 0:00:36]} Kg8 {[%emt 0:00:04]} 81. Rg7+ {[%emt 0:00:05]} Kh8 {[%emt 0:00:01]} 82. Kh6 {[%emt 0:00:15]} Rb8 {[%emt 0:00:02]} 83. g5 {[%emt 0:00:08]} Ra8 {[%emt 0:00:02]} 84. Rf7 {[%emt 0:00:14]} Kg8 {[%emt 0:00:05]} 85. Kg6 {[%emt 0:00:07]} Rb8 {[%emt 0:00:07]} 86. Rg7+ {[%emt 0:00:03]} Kh8 {[%emt 0:00:01]} 87. Re7 {[%emt 0:00:06]} Kg8 {[%emt 0:00:04]} 88. Re6 {[%emt 0:00:03]} Ra8 {[%emt 0:00:03]} 89. Kf6 {[%emt 0:00:08]} Rf8+ {[%emt 0:00:05]} 90. Kg6 {[%emt 0:00:02]} Ra8 {[%emt 0:00:01]} 91. Rd6 {[%emt 0:00:02]} Rb8 {[%emt 0:00:02]} 92. Kh6 {[%emt 0:00:05]} Ra8 {[%emt 0:00:02]} 93. Rg6+ {[%emt 0:00:07]} Kh8 {[%emt 0:00:02]} 94. Rg7 {[%emt 0:00:04]} Rb8 {[%emt 0:00:08]} 95. Ra7 {[%emt 0:00:06]} Kg8 {[%emt 0:00:04]} 96. g6 {[%emt 0:00:05]} Rc8 {[%emt 0:00:03]} 97. Ra6 {[%emt 0:00:02]} Rb8 {[%emt 0:00:03]} 98. Rf6 {[%emt 0:00:02]} Rc8 {[%emt 0:00:04]} 99. g7 {[%emt 0:00:03]} Rb8 {[%emt 0:00:05]} 100. Kg6 {[%emt 0:00:02]} Ra8 {[%emt 0:00:05]} 101. Re6 {[%emt 0:00:04]} Rb8 {[%emt 0:00:02]} 102. Rf6 {[%emt 0:00:01]} Ra8 {[%emt 0:00:02]} 103. Re6 {[%emt 0:00:01]} Rb8 {[%emt 0:00:01]} 104. Rf6 {[%emt 0:00:01]} 1/2-1/2

[Event "FIDE Open World Rapid 2024"]
[Site "New York"]
[Date "2024.12.27"]
[Round "7.10"]
[White "Cheparinov, Ivan"]
[Black "Matviishen, Viktor"]
[Result "1-0"]
[ECO "B90"]
[WhiteElo "2646"]
[BlackElo "2566"]
[Annotator "ChessBase"]
[PlyCount "61"]
[EventDate "2024.12.14"]
[EventType "swiss"]
[EventCountry "USA"]
[SourceTitle "playchess.com"]
[Source "ChessBase"]
[SourceQuality "1"]
[TimeControl "900+10"]

1. e4 {[%emt 0:00:02]} c5 {[%emt 0:00:01]} 2. Nf3 {[%emt 0:00:07]} d6 {[%emt 0:00:02]} 3. d4 {[%emt 0:00:08]} cxd4 {[%emt 0:00:02]} 4. Nxd4 {[%emt 0:00:01]} Nf6 {[%emt 0:00:02]} 5. Nc3 {[%emt 0:00:01]} a6 {[%emt 0:00:00]} 6. f3 {[%emt 0:00:07]} e5 {[%emt 0:00:05]} 7. Nb3 {[%emt 0:00:07]} Be7 {[%emt 0:00:02]} 8. Be3 {[%emt 0:00:07]} Be6 {[%emt 0:00:02]} 9. Qd2 {[%emt 0:00:03]} h5 {[%emt 0:00:02]} 10. Nd5 {[%emt 0:00:50]} Nxd5 {[%emt 0:00:09]} 11. exd5 {[%emt 0:00:01]} Bf5 {[%emt 0:00:02]} 12. Be2 {[%emt 0:00:10]} a5 {[%emt 0:00:26]} 13. a4 {[%emt 0:00:05]} O-O {[%emt 0:00:18]} 14. O-O {[%emt 0:00:06]} Nd7 {[%emt 0:00:01]} 15. f4 {[%emt 0:00:46]} exf4 {[%emt 0:00:03]} 16. Bxf4 {[%emt 0:00:01]} Rc8 {[%emt 0:01:14]} 17. c3 {[%emt 0:00:33]} Bg6 {[%emt 0:04:46]} 18. Bb5 {[%emt 0:01:53]} Ne5 {[%emt 0:02:49]} 19. Rae1 {[%emt 0:00:27]} Bf6 {[%emt 0:00:02]} 20. Kh1 {[%emt 0:00:16]} Qc7 {[%emt 0:03:15]} 21. h3 {[%emt 0:02:18]} Nd7 {[%emt 0:01:27]} 22. Nxa5 {[%emt 0:00:42]} Nc5 {[%emt 0:01:05]} 23. Nc4 {[%emt 0:00:14]} Rfd8 {[%emt 0:00:28]} 24. Re3 {[%emt 0:01:07]} Ra8 {[%emt 0:00:43]} 25. Rfe1 {[%emt 0:01:07]} Kh7 {[%emt 0:00:33]} 26. Qd1 {[%emt 0:02:58]} Nxa4 {[%emt 0:00:24]} 27. Nxd6 {[%emt 0:02:41]} Nb6 {[%emt 0:00:30]} 28. Bd3 {[%emt 0:01:23]} Bxd3 {[%emt 0:00:30]} 29. Qxd3+ {[%emt 0:00:18]} Kg8 {[%emt 0:00:05]} 30. Bh2 {[%emt 0:00:05]} Qc5 {[%emt 0:00:31]} 31. Nxb7 {[%emt 0:00:05]} 1-0

[Event "FIDE Open World Rapid 2024"]
[Site "New York"]
[Date "2024.12.27"]
[Round "7.11"]
[White "Can, Isik"]
[Black "Sindarov, Javokhir"]
[Result "0-1"]
[ECO "B36"]
[WhiteElo "2499"]
[BlackElo "2682"]
[Annotator "ChessBase"]
[PlyCount "128"]
[EventDate "2024.12.14"]
[EventType "swiss"]
[EventCountry "USA"]
[SourceTitle "playchess.com"]
[Source "ChessBase"]
[SourceQuality "1"]
[TimeControl "900+10"]

1. e4 {[%emt 0:00:16]} c5 {[%emt 0:00:01]} 2. Nf3 {[%emt 0:00:02]} g6 {[%emt 0:00:01]} 3. c4 {[%emt 0:00:51]} Nc6 {[%emt 0:00:01]} 4. d4 {[%emt 0:00:01]} cxd4 {[%emt 0:00:02]} 5. Nxd4 {[%emt 0:00:01]} Nf6 {[%emt 0:00:01]} 6. Nc3 {[%emt 0:00:03]} d6 {[%emt 0:00:01]} 7. Be2 {[%emt 0:00:04]} Nxd4 {[%emt 0:00:01]} 8. Qxd4 {[%emt 0:00:02]} Bg7 {[%emt 0:00:01]} 9. Be3 {[%emt 0:00:15]} O-O {[%emt 0:00:03]} 10. Qd3 {[%emt 0:00:02]} Bd7 {[%emt 0:00:02]} 11. O-O {[%emt 0:00:26]} a6 {[%emt 0:00:01]} 12. a3 {[%emt 0:03:52]} b5 {[%emt 0:00:35]} 13. cxb5 {[%emt 0:00:51]} axb5 {[%emt 0:00:01]} 14. f3 {[%emt 0:00:01]} Rb8 {[%emt 0:01:03]} 15. b4 {[%emt 0:00:10]} Qc7 {[%emt 0:00:08]} 16. Rac1 {[%emt 0:02:25]} Qb7 {[%emt 0:00:06]} 17. g4 {[%emt 0:00:02]} Rfc8 {[%emt 0:00:19]} 18. g5 {[%emt 0:01:59]} Nh5 {[%emt 0:03:10]} 19. Nxb5 {[%emt 0:01:34]} Rxc1 {[%emt 0:00:54]} 20. Rxc1 {[%emt 0:00:01]} Bb2 {[%emt 0:00:55]} 21. Rc2 {[%emt 0:02:06]} Bxb5 {[%emt 0:00:21]} 22. Qxb5 {[%emt 0:00:03]} Qxb5 {[%emt 0:00:01]} 23. Bxb5 {[%emt 0:00:02]} Bxa3 {[%emt 0:00:01]} 24. Be2 {[%emt 0:01:03]} Rxb4 {[%emt 0:00:31]} 25. Rc7 {[%emt 0:00:35]} e6 {[%emt 0:01:46]} 26. Rc6 {[%emt 0:00:52]} Rb1+ {[%emt 0:00:25]} 27. Kf2 {[%emt 0:00:00]} Bc5 {[%emt 0:02:01]} 28. Bxc5 {[%emt 0:00:00]} dxc5 {[%emt 0:00:01]} 29. Rxc5 {[%emt 0:00:03]} Nf4 {[%emt 0:00:08]} 30. Bf1 {[%emt 0:00:29]} Kg7 {[%emt 0:00:26]} 31. Ke3 {[%emt 0:00:49]} Nh5 {[%emt 0:00:01]} 32. Bc4 {[%emt 0:00:01]} Re1+ {[%emt 0:00:11]} 33. Kd2 {[%emt 0:00:19]} Rh1 {[%emt 0:00:18]} 34. Rc7 {[%emt 0:00:12]} Rxh2+ {[%emt 0:00:05]} 35. Ke3 {[%emt 0:00:01]} Rc2 {[%emt 0:01:47]} 36. Kd3 {[%emt 0:00:32]} Rg2 {[%emt 0:00:02]} 37. Ke3 {[%emt 0:00:11]} Kf8 {[%emt 0:00:06]} 38. Rc8+ {[%emt 0:00:48]} Ke7 {[%emt 0:00:01]} 39. Rc7+ {[%emt 0:00:01]} Ke8 {[%emt 0:00:01]} 40. Bb5+ {[%emt 0:00:33]} Kf8 {[%emt 0:00:04]} 41. Rc8+ {[%emt 0:00:09]} Kg7 {[%emt 0:00:24]} 42. Rc7 {[%emt 0:00:09]} Rxg5 {[%emt 0:02:34]} 43. Be8 {[%emt 0:00:01]} Ra5 {[%emt 0:00:01]} 44. Bxf7 {[%emt 0:00:13]} Kf6 {[%emt 0:00:15]} 45. Bg8 {[%emt 0:00:15]} Ra3+ {[%emt 0:00:37]} 46. Kf2 {[%emt 0:00:01]} h6 {[%emt 0:00:01]} 47. Rf7+ {[%emt 0:00:22]} Ke5 {[%emt 0:00:05]} 48. Rh7 {[%emt 0:00:08]} Ra2+ {[%emt 0:00:14]} 49. Kg1 {[%emt 0:00:11]} Ra8 {[%emt 0:01:35]} 50. Bf7 {[%emt 0:00:05]} Nf4 {[%emt 0:00:03]} 51. Rxh6 {[%emt 0:00:15]} Kf6 {[%emt 0:00:09]} 52. Rh7 {[%emt 0:00:10]} Rf8 {[%emt 0:00:03]} 53. Bxg6 {[%emt 0:00:10]} Kxg6 {[%emt 0:00:09]} 54. Ra7 {[%emt 0:00:05]} Rb8 {[%emt 0:00:46]} 55. Kf2 {[%emt 0:00:15]} Kf6 {[%emt 0:00:08]} 56. Kg3 {[%emt 0:00:08]} Ne2+ {[%emt 0:00:54]} 57. Kf2 {[%emt 0:00:08]} Rb2 {[%emt 0:00:06]} 58. Ke3 {[%emt 0:00:07]} Ng3 {[%emt 0:00:01]} 59. Kf4 {[%emt 0:00:09]} Rg2 {[%emt 0:00:24]} 60. e5+ {[%emt 0:00:15]} Kg6 {[%emt 0:00:01]} 61. Re7 {[%emt 0:00:04]} Nh5+ {[%emt 0:00:02]} 62. Ke3 {[%emt 0:00:21]} Kf5 {[%emt 0:00:17]} 63. Rh7 {[%emt 0:00:09]} Ng7 {[%emt 0:00:25]} 64. Kd4 {[%emt 0:00:11]} Kf4 {[%emt 0:00:09]} 0-1

[Event "FIDE Open World Rapid 2024"]
[Site "New York"]
[Date "2024.12.27"]
[Round "7.11"]
[White "Druska, Juraj"]
[Black "Fressinet, Laurent"]
[Result "1/2-1/2"]
[ECO "C47"]
[WhiteElo "2423"]
[BlackElo "2588"]
[Annotator "ChessBase"]
[PlyCount "143"]
[EventDate "2024.12.14"]
[EventType "swiss"]
[EventCountry "USA"]
[SourceTitle "playchess.com"]
[Source "ChessBase"]
[SourceQuality "1"]
[TimeControl "900+10"]

1. e4 {[%emt 0:00:03]} e5 {[%emt 0:00:02]} 2. Nf3 {[%emt 0:00:10]} Nc6 {[%emt 0:00:04]} 3. Nc3 {[%emt 0:00:02]} Nf6 {[%emt 0:00:03]} 4. d4 {[%emt 0:00:02]} exd4 {[%emt 0:00:04]} 5. Nxd4 {[%emt 0:00:01]} Bc5 {[%emt 0:00:30]} 6. Nxc6 {[%emt 0:00:11]} bxc6 {[%emt 0:00:03]} 7. Bd3 {[%emt 0:00:01]} O-O {[%emt 0:00:37]} 8. O-O {[%emt 0:00:03]} d5 {[%emt 0:01:47]} 9. exd5 {[%emt 0:00:14]} cxd5 {[%emt 0:00:02]} 10. h3 {[%emt 0:03:57]} c6 {[%emt 0:00:44]} 11. Qf3 {[%emt 0:00:11]} Rb8 {[%emt 0:01:56]} 12. Bf4 {[%emt 0:02:22]} Bd6 {[%emt 0:00:13]} 13. b3 {[%emt 0:00:02]} Be6 {[%emt 0:00:36]} 14. Rad1 {[%emt 0:00:31]} Bxf4 {[%emt 0:01:29]} 15. Qxf4 {[%emt 0:00:01]} Qa5 {[%emt 0:00:01]} 16. Qd2 {[%emt 0:01:31]} Qc7 {[%emt 0:01:22]} 17. Ne2 {[%emt 0:01:36]} c5 {[%emt 0:00:02]} 18. Qf4 {[%emt 0:02:06]} Qa5 {[%emt 0:00:18]} 19. Ng3 {[%emt 0:00:58]} Qb4 {[%emt 0:02:14]} 20. Qxb4 {[%emt 0:01:26]} Rxb4 {[%emt 0:00:01]} 21. Rfe1 {[%emt 0:00:02]} g6 {[%emt 0:00:30]} 22. Be2 {[%emt 0:00:21]} a5 {[%emt 0:01:01]} 23. Bf3 {[%emt 0:00:06]} a4 {[%emt 0:02:29]} 24. Re5 {[%emt 0:01:27]} Rc8 {[%emt 0:00:42]} 25. Re3 {[%emt 0:00:59]} Rb6 {[%emt 0:01:12]} 26. Rd2 {[%emt 0:00:06]} Ra6 {[%emt 0:00:25]} 27. Be2 {[%emt 0:00:11]} Ra5 {[%emt 0:00:19]} 28. Bf3 {[%emt 0:00:15]} axb3 {[%emt 0:00:29]} 29. axb3 {[%emt 0:00:00]} Ra2 {[%emt 0:00:01]} 30. Ree2 {[%emt 0:00:56]} Ra1+ {[%emt 0:00:15]} 31. Kh2 {[%emt 0:00:01]} Kg7 {[%emt 0:00:11]} 32. Re5 {[%emt 0:00:03]} c4 {[%emt 0:00:22]} 33. bxc4 {[%emt 0:00:12]} dxc4 {[%emt 0:00:14]} 34. Ne4 {[%emt 0:00:04]} c3 {[%emt 0:00:09]} 35. Re2 {[%emt 0:00:30]} Bc4 {[%emt 0:00:11]} 36. Re3 {[%emt 0:00:14]} Nd5 {[%emt 0:00:02]} 37. Nd6 {[%emt 0:00:11]} Nxe3 {[%emt 0:00:05]} 38. Rxe3 {[%emt 0:00:06]} Rc5 {[%emt 0:00:33]} 39. Rxc3 {[%emt 0:00:01]} Ra4 {[%emt 0:00:01]} 40. Be2 {[%emt 0:00:05]} Bxe2 {[%emt 0:00:14]} 41. Rxc5 {[%emt 0:00:01]} Rd4 {[%emt 0:00:03]} 42. Ne8+ {[%emt 0:00:16]} Kf8 {[%emt 0:00:06]} 43. Nf6 {[%emt 0:00:02]} Kg7 {[%emt 0:00:10]} 44. Nd5 {[%emt 0:00:03]} Rd2 {[%emt 0:00:05]} 45. Kg3 {[%emt 0:00:08]} h5 {[%emt 0:00:09]} 46. h4 {[%emt 0:00:11]} Bg4 {[%emt 0:00:25]} 47. Ne3 {[%emt 0:00:25]} Be6 {[%emt 0:00:01]} 48. Rc3 {[%emt 0:00:12]} Rd4 {[%emt 0:00:24]} 49. Rd3 {[%emt 0:00:15]} Ra4 {[%emt 0:00:01]} 50. Rd2 {[%emt 0:00:22]} Kf6 {[%emt 0:00:02]} 51. c3 {[%emt 0:00:11]} Ke5 {[%emt 0:00:22]} 52. Re2 {[%emt 0:00:09]} Kd6 {[%emt 0:00:10]} 53. f3 {[%emt 0:00:09]} Ra3 {[%emt 0:00:12]} 54. Rc2 {[%emt 0:00:12]} Kc5 {[%emt 0:00:05]} 55. Kf2 {[%emt 0:00:07]} Ra4 {[%emt 0:00:12]} 56. c4 {[%emt 0:00:04]} Ra3 {[%emt 0:00:13]} 57. Rd2 {[%emt 0:00:11]} Rb3 {[%emt 0:00:09]} 58. Ra2 {[%emt 0:00:04]} Rc3 {[%emt 0:00:08]} 59. Ra7 {[%emt 0:00:22]} Rb3 {[%emt 0:00:16]} 60. Ra2 {[%emt 0:00:09]} Rc3 {[%emt 0:00:05]} 61. Rd2 {[%emt 0:00:01]} Kc6 {[%emt 0:00:26]} 62. Rd8 {[%emt 0:00:17]} Kc5 {[%emt 0:00:00]} 63. Rd2 {[%emt 0:00:10]} Kc6 {[%emt 0:00:00]} 64. Rd4 {[%emt 0:00:01]} Kc5 {[%emt 0:00:03]} 65. Re4 {[%emt 0:00:04]} Rc1 {[%emt 0:00:13]} 66. g4 {[%emt 0:00:27]} hxg4 {[%emt 0:00:20]} 67. fxg4 {[%emt 0:00:01]} Rh1 {[%emt 0:00:02]} 68. Kg3 {[%emt 0:00:05]} Kd6 {[%emt 0:00:05]} 69. Ng2 {[%emt 0:00:21]} Kc5 {[%emt 0:00:11]} 70. Ne3 {[%emt 0:00:17]} Kd6 {[%emt 0:00:01]} 71. Ng2 {[%emt 0:00:10]} Kc5 {[%emt 0:00:01]} 72. Ne3 {[%emt 0:00:09]} 1/2-1/2

[Event "FIDE Open World Rapid 2024"]
[Site "New York"]
[Date "2024.12.27"]
[Round "7.12"]
[White "Pranav, V."]
[Black "Grigoryan, Karen H."]
[Result "1-0"]
[ECO "C47"]
[WhiteElo "2621"]
[BlackElo "2618"]
[Annotator "ChessBase"]
[PlyCount "45"]
[EventDate "2024.12.14"]
[EventType "swiss"]
[EventCountry "USA"]
[SourceTitle "playchess.com"]
[Source "ChessBase"]
[SourceQuality "1"]
[TimeControl "900+10"]

1. e4 {[%emt 0:00:01]} e5 {[%emt 0:00:03]} 2. Nf3 {[%emt 0:00:04]} Nc6 {[%emt 0:00:02]} 3. Nc3 {[%emt 0:00:01]} Nf6 {[%emt 0:00:02]} 4. Nd5 {[%emt 0:00:02]} Be7 {[%emt 0:00:36]} 5. Bd3 {[%emt 0:00:26]} d6 {[%emt 0:00:07]} 6. c3 {[%emt 0:00:08]} Be6 {[%emt 0:00:25]} 7. Nxe7 {[%emt 0:00:22]} Qxe7 {[%emt 0:00:07]} 8. O-O {[%emt 0:00:04]} d5 {[%emt 0:00:46]} 9. Bb5 {[%emt 0:02:08]} dxe4 {[%emt 0:00:30]} 10. Nxe5 {[%emt 0:00:02]} O-O {[%emt 0:00:34]} 11. Nxc6 {[%emt 0:00:37]} bxc6 {[%emt 0:00:03]} 12. Bxc6 {[%emt 0:00:01]} Rad8 {[%emt 0:00:41]} 13. Re1 {[%emt 0:00:53]} Bg4 {[%emt 0:03:24]} 14. Qa4 {[%emt 0:00:55]} Rd3 {[%emt 0:02:49]} 15. b3 {[%emt 0:04:46]} Qc5 {[%emt 0:00:58]} 16. Ba3 {[%emt 0:01:26]} Qg5 {[%emt 0:00:14]} 17. Qb5 {[%emt 0:00:31]} Nd5 {[%emt 0:00:56]} 18. h4 {[%emt 0:02:17]} Qg6 {[%emt 0:01:16]} 19. Bxd5 {[%emt 0:00:16]} Bf3 {[%emt 0:00:15]} 20. g3 {[%emt 0:00:37]} Rxd2 {[%emt 0:02:21]} 21. Bxe4 {[%emt 0:00:38]} Bxe4 {[%emt 0:00:10]} 22. Bxf8 {[%emt 0:00:35]} Bc6 {[%emt 0:00:02]} 23. Qg5 {[%emt 0:00:20]} 1-0

[Event "FIDE Open World Rapid 2024"]
[Site "New York"]
[Date "2024.12.27"]
[Round "7.12"]
[White "Bezold, Michael"]
[Black "Saraci, Nderim"]
[Result "1/2-1/2"]
[ECO "A20"]
[WhiteElo "2469"]
[BlackElo "2431"]
[Annotator "ChessBase"]
[PlyCount "41"]
[EventDate "2024.12.14"]
[EventType "swiss"]
[EventCountry "USA"]
[SourceTitle "playchess.com"]
[Source "ChessBase"]
[SourceQuality "1"]
[TimeControl "900+10"]

1. c4 {[%emt 0:00:02]} e5 {[%emt 0:00:07]} 2. b3 {[%emt 0:00:07]} g6 {[%emt 0:00:24]} 3. Bb2 {[%emt 0:00:04]} Bg7 {[%emt 0:00:02]} 4. g3 {[%emt 0:00:19]} f5 {[%emt 0:00:22]} 5. Bg2 {[%emt 0:00:09]} Nc6 {[%emt 0:00:03]} 6. e3 {[%emt 0:01:28]} d6 {[%emt 0:00:47]} 7. Nc3 {[%emt 0:00:16]} Nf6 {[%emt 0:01:07]} 8. d3 {[%emt 0:00:17]} O-O {[%emt 0:01:03]} 9. Nge2 {[%emt 0:00:08]} Ne7 {[%emt 0:01:23]} 10. Qd2 {[%emt 0:01:16]} c6 {[%emt 0:00:18]} 11. f4 {[%emt 0:01:12]} exf4 {[%emt 0:01:05]} 12. gxf4 {[%emt 0:00:19]} Rb8 {[%emt 0:02:16]} 13. O-O {[%emt 0:00:37]} b5 {[%emt 0:00:37]} 14. Rae1 {[%emt 0:02:31]} bxc4 {[%emt 0:00:45]} 15. dxc4 {[%emt 0:00:11]} d5 {[%emt 0:00:17]} 16. Rd1 {[%emt 0:00:29]} Re8 {[%emt 0:02:52]} 17. cxd5 {[%emt 0:02:24]} Nexd5 {[%emt 0:00:20]} 18. Nxd5 {[%emt 0:00:36]} cxd5 {[%emt 0:00:06]} 19. Be5 {[%emt 0:00:46]} Rb6 {[%emt 0:00:36]} 20. Rc1 {[%emt 0:01:34]} Ng4 {[%emt 0:01:43]} 21. Qxd5+ {[%emt 0:02:04]} 1/2-1/2